fUST/lending_fUST_20251212
["ID","MTS","AMOUNT","RATE_DAILY","PERIOD"]
[398259417,1765473081315,-2302.959549,0.00014246,2]
[398259418,1765473081324,-500.0,0.00014246,2]
[398259419,1765473081335,-500.0,0.00014246,2]
[398259420,1765473081345,-500.0,0.00014246,2]
[398259421,1765473081355,-500.0,0.00014246,2]
[398259422,1765473081365,-500.0,0.00014246,2]
[398259423,1765473081375,-500.0,0.00014246,2]
[398259424,1765473081385,-935.65,0.00014246,2]
[398259425,1765473081396,-500.0,0.00014246,2]
[398259426,1765473081406,-500.0,0.00014246,2]
[398259427,1765473081416,-500.0,0.00014246,2]
[398259428,1765473081426,-733.38,0.00014246,2]
[398259429,1765473081436,-500.0,0.00014246,2]
[398259430,1765473081446,-500.0,0.00014246,2]
[398259431,1765473081455,-1097.28,0.00014246,2]
[398259432,1765473081466,-500.0,0.00014246,2]
[398259433,1765473081476,-878.81,0.00014246,2]
[398259434,1765473081486,-1446.65,0.00014246,2]
[398259435,1765473081496,-500.0,0.00014246,2]
[398259436,1765473081507,-500.0,0.00014246,2]
[398259437,1765473081517,-246.72212709,0.00014246,2]
[398259438,1765473081528,-500.0,0.00014246,2]
[398259439,1765473081538,-724.0,0.00014246,2]
[398259440,1765473081549,-500.0,0.00014246,2]
[398259441,1765473081559,-500.0,0.00014246,2]
[398259442,1765473081570,-672.09,0.00014246,2]
[398259443,1765473081580,-540.2,0.00014246,2]
[398259444,1765473081590,-1325.77,0.00014246,2]
[398259445,1765473081601,-500.0,0.00014246,2]
[398259446,1765473081610,-500.0,0.00014246,2]
[398259447,1765473081621,-500.0,0.00014246,2]
[398259448,1765473081631,-921.35,0.00014246,2]
[398259449,1765473081640,-790.82,0.00014246,2]
[398259450,1765473081650,-500.0,0.00014246,2]
[398259451,1765473081660,-1499.79,0.00014246,2]
[398259452,1765473081670,-500.0,0.00014246,2]
[398259453,1765473081679,-500.0,0.00014246,2]
[398259454,1765473081689,-740.19,0.00014246,2]
[398259455,1765473081699,-583.67,0.00014246,2]
[398259456,1765473081708,-500.0,0.00014246,2]
[398259457,1765473081718,-933.59,0.00014246,2]
[398259458,1765473081728,-1548.83,0.00014246,2]
[398259459,1765473081738,-175.80891858,0.00014246,2]
[398259460,1765473081748,-647.22,0.00014246,2]
[398259461,1765473081758,-574.23281238,0.00014246,2]
[398259462,1765473081768,-942.57,0.00014246,2]
[398259463,1765473081777,-500.0,0.00014246,2]
[398259464,1765473081787,-500.0,0.00014246,2]
[398259465,1765473081797,-500.0,0.00014246,2]
[398259466,1765473081807,-2824.48,0.00014246,2]
[398259467,1765473081818,-845.83,0.00014246,2]
[398259468,1765473081827,-500.0,0.00014246,2]
[398259469,1765473081837,-1883.8,0.00014246,2]
[398259470,1765473081847,-500.0,0.00014246,2]
[398259471,1765473081856,-542.07,0.00014246,2]
[398259472,1765473081865,-500.0,0.00014246,2]
[398259473,1765473081875,-500.0,0.00014246,2]
[398259474,1765473081884,-626.92,0.00014246,2]
[398259475,1765473081894,-1839.54,0.00014246,2]
[398259476,1765473081903,-500.0,0.00014246,2]
[398259477,1765473081913,-500.0,0.00014246,2]
[398259478,1765473081923,-2829.3,0.00014246,2]
[398259479,1765473081933,-512.17,0.00014246,2]
[398259480,1765473081942,-500.0,0.00014246,2]
[398259481,1765473081952,-700.08,0.00014246,2]
[398259482,1765473081962,-500.0,0.00014246,2]
[398259483,1765473081974,-566.46,0.00014246,2]
[398259484,1765473081984,-500.0,0.00014246,2]
[398259485,1765473081994,-500.0,0.00014246,2]
[398259486,1765473082004,-500.0,0.00014246,2]
[398259487,1765473082254,-1148.61,0.00014246,2]
[398259488,1765473082263,-500.0,0.00014246,2]
[398259489,1765473082272,-863.88,0.00014246,2]
[398259490,1765473082281,-500.0,0.00014246,2]
[398259491,1765473082290,-1156.91,0.00014246,2]
[398259492,1765473082298,-500.0,0.00014246,2]
[398259493,1765473082307,-661.38,0.00014246,2]
[398259494,1765473082316,-676.34,0.00014246,2]
[398259495,1765473082325,-500.0,0.00014246,2]
[398259496,1765473082334,-951.19,0.00014246,2]
[398259497,1765473082343,-500.0,0.00014246,2]
[398259498,1765473082351,-500.0,0.00014246,2]
[398259499,1765473082361,-1268.0,0.00014246,2]
[398259500,1765473082370,-696.06,0.00014246,2]
[398259501,1765473082379,-500.0,0.00014246,2]
[398259502,1765473082388,-532.67,0.00014246,2]
[398259503,1765473082397,-1479.61,0.00014246,2]
[398259504,1765473082407,-1666.57,0.00014246,2]
[398259505,1765473082416,-664.88,0.00014246,2]
[398259506,1765473082425,-571.38,0.00014246,2]
[398259507,1765473082434,-500.0,0.00014246,2]
[398259508,1765473082443,-500.0,0.00014246,2]
[398259509,1765473082453,-500.0,0.00014246,2]
[398259510,1765473082463,-500.0,0.00014246,2]
[398259511,1765473082472,-920.86,0.00014246,2]
[398259512,1765473082481,-500.0,0.00014246,2]
[398259513,1765473082491,-500.0,0.00014246,2]
[398259514,1765473082499,-522.54682868,0.00014246,2]
[398259515,1765473082509,-290.33508358,0.00014246,2]
[398259516,1765473082518,-1042.86,0.00014246,2]
[398259517,1765473082527,-500.0,0.00014246,2]
[398259518,1765473082536,-500.0,0.00014246,2]
[398259519,1765473082545,-500.0,0.00014246,2]
[398259520,1765473082554,-1029.97,0.00014246,2]
[398259521,1765473082563,-500.0,0.00014246,2]
[398259522,1765473082572,-500.0,0.00014246,2]
[398259523,1765473082581,-431.02155646,0.00014246,2]
[398259524,1765473082590,-280.71353265,0.00014246,2]
[398259525,1765473082599,-500.0,0.00014246,2]
[398259526,1765473082608,-500.0,0.00014246,2]
[398259527,1765473082617,-1041.62,0.00014246,2]
[398259528,1765473082626,-500.0,0.00014246,2]
[398259529,1765473082635,-500.0,0.00014246,2]
[398259530,1765473082644,-1387.16,0.00014246,2]
[398259531,1765473082653,-599.12,0.00014246,2]
[398259532,1765473082662,-500.0,0.00014246,2]
[398259533,1765473082671,-500.0,0.00014246,2]
[398259534,1765473082680,-500.0,0.00014246,2]
[398259535,1765473082689,-913.77,0.00014246,2]
[398259536,1765473082698,-765.56,0.00014246,2]
[398259537,1765473082707,-678.15,0.00014246,2]
[398259538,1765473082717,-873.29,0.00014246,2]
[398259539,1765473082726,-500.0,0.00014246,2]
[398259540,1765473082735,-500.0,0.00014246,2]
[398259541,1765473082744,-500.0,0.00014246,2]
[398259542,1765473082752,-500.0,0.00014246,2]
[398259543,1765473082761,-500.0,0.00014246,2]
[398259544,1765473082770,-1017.67,0.00014246,2]
[398259545,1765473082779,-829.65,0.00014246,2]
[398259546,1765473082787,-342.06502694,0.00014246,2]
[398259547,1765473082797,-500.0,0.00014246,2]
[398259548,1765473082805,-1186.27,0.00014246,2]
[398259549,1765473082814,-500.0,0.00014246,2]
[398259550,1765473082823,-500.0,0.00014246,2]
[398259551,1765473082832,-1719.24,0.00014246,2]
[398259552,1765473082841,-576.64,0.00014246,2]
[398259553,1765473082849,-500.0,0.00014246,2]
[398259554,1765473082858,-500.0,0.00014246,2]
[398259555,1765473082867,-1000.0,0.00014246,2]
[398259556,1765473082876,-500.0,0.00014246,2]
[398259557,1765473082885,-1255.04,0.00014246,2]
[398259558,1765473082894,-500.0,0.00014246,2]
[398259559,1765473082902,-500.0,0.00014246,2]
[398259560,1765473082911,-500.0,0.00014246,2]
[398259561,1765473082920,-500.0,0.00014246,2]
[398259562,1765473082929,-1858.97,0.00014246,2]
[398259563,1765473082938,-692.35,0.00014246,2]
[398259564,1765473082947,-1482.69,0.00014246,2]
[398259565,1765473082956,-500.0,0.00014246,2]
[398259566,1765473082965,-500.0,0.00014246,2]
[398259567,1765473082978,-1716.66,0.00014246,2]
[398259568,1765473082987,-3325.19,0.00014246,2]
[398259569,1765473082996,-565.52,0.00014246,2]
[398259570,1765473083004,-724.84,0.00014246,2]
[398259571,1765473083014,-500.0,0.00014246,2]
[398259572,1765473083024,-500.0,0.00014246,2]
[398259573,1765473083032,-859.19,0.00014246,2]
[398259574,1765473083042,-500.0,0.00014246,2]
[398259575,1765473083050,-520.73,0.00014246,2]
[398259576,1765473083059,-1859.85,0.00014246,2]
[398259577,1765473083068,-1258.13,0.00014246,2]
[398259578,1765473083078,-2447.95,0.00014246,2]
[398259579,1765473083087,-674.1,0.00014246,2]
[398259580,1765473083096,-745.61,0.00014246,2]
[398259581,1765473083105,-500.0,0.00014246,2]
[398259582,1765473083114,-500.0,0.00014246,2]
[398259583,1765473083124,-933.97,0.00014246,2]
[398259584,1765473083133,-665.21,0.00014246,2]
[398259585,1765473083141,-500.0,0.00014246,2]
[398259586,1765473083151,-500.0,0.00014246,2]
[398259587,1765473083160,-500.0,0.00014246,2]
[398259588,1765473083170,-617.92,0.00014246,2]
[398259589,1765473083179,-1369.84,0.00014246,2]
[398259590,1765473083188,-500.0,0.00014246,2]
[398259591,1765473083198,-500.0,0.00014246,2]
[398259592,1765473083208,-500.0,0.00014246,2]
[398259593,1765473083217,-500.0,0.00014246,2]
[398259594,1765473083226,-500.0,0.00014246,2]
[398259595,1765473083235,-500.0,0.00014246,2]
[398259596,1765473083245,-500.0,0.00014246,2]
[398259597,1765473083254,-500.0,0.00014246,2]
[398259598,1765473083263,-1527.37,0.00014246,2]
[398259599,1765473083271,-2464.33,0.00014246,2]
[398259600,1765473083280,-500.0,0.00014246,2]
[398259601,1765473083289,-858.6,0.00014246,2]
[398259602,1765473083298,-500.0,0.00014246,2]
[398259603,1765473083307,-500.0,0.00014246,2]
[398259604,1765473083316,-2247.37,0.00014246,2]
[398259605,1765473083326,-500.0,0.00014246,2]
[398259606,1765473083335,-500.0,0.00014246,2]
[398259607,1765473083345,-1279.21,0.00014246,2]
[398259608,1765473083354,-1195.79,0.00014246,2]
[398259609,1765473083363,-643.05601535,0.00014246,2]
[398259610,1765473083372,-500.0,0.00014246,2]
[398259611,1765473083381,-500.0,0.00014246,2]
[398259612,1765473083390,-874.92,0.00014246,2]
[398259613,1765473083399,-500.0,0.00014246,2]
[398259614,1765473083408,-500.0,0.00014246,2]
[398259615,1765473083418,-526.06,0.00014246,2]
[398259616,1765473083427,-505.47,0.00014246,2]
[398259617,1765473083436,-500.0,0.00014246,2]
[398259618,1765473083446,-500.0,0.00014246,2]
[398259619,1765473083456,-700.69,0.00014246,2]
[398259620,1765473083465,-500.0,0.00014246,2]
[398259621,1765473083475,-500.0,0.00014246,2]
[398259622,1765473083485,-681.33,0.00014246,2]
[398259623,1765473083495,-500.0,0.00014246,2]
[398259624,1765473083505,-500.0,0.00014246,2]
[398259625,1765473083515,-500.0,0.00014246,2]
[398259626,1765473083524,-500.0,0.00014246,2]
[398259627,1765473083534,-701.01,0.00014246,2]
[398259628,1765473083543,-500.0,0.00014246,2]
[398259629,1765473083552,-1761.69,0.00014246,2]
[398259630,1765473083562,-1576.73,0.00014246,2]
[398259631,1765473083572,-668.75,0.00014246,2]
[398259632,1765473083581,-500.0,0.00014246,2]
[398259633,1765473083590,-500.0,0.00014246,2]
[398259634,1765473083599,-500.0,0.00014246,2]
[398259635,1765473083609,-1411.4,0.00014246,2]
[398259636,1765473083618,-7512.92,0.00014246,2]
[398259637,1765473083632,-500.0,0.00014246,2]
[398259638,1765473083641,-500.0,0.00014246,2]
[398259639,1765473083650,-637.83,0.00014246,2]
[398259640,1765473083659,-500.0,0.00014246,2]
[398259641,1765473083668,-500.0,0.00014246,2]
[398259642,1765473083678,-1296.47,0.00014246,2]
[398259643,1765473083687,-1688.98,0.00014246,2]
[398259644,1765473083696,-500.0,0.00014246,2]
[398259645,1765473083706,-1630.81,0.00014246,2]
[398259646,1765473083715,-647.94,0.00014246,2]
[398259647,1765473083724,-500.0,0.00014246,2]
[398259648,1765473083733,-1041.06,0.00014246,2]
[398259649,1765473083743,-500.0,0.00014246,2]
[398259650,1765473083752,-1080.19,0.00014246,2]
[398259651,1765473083762,-3732.69,0.00014246,2]
[398259652,1765473083771,-803.0,0.00014246,2]
[398259653,1765473083781,-500.0,0.00014246,2]
[398259654,1765473083790,-1453.87,0.00014246,2]
[398259655,1765473083799,-1663.21,0.00014246,2]
[398259656,1765473083808,-950.4,0.00014246,2]
[398259657,1765473083818,-500.0,0.00014246,2]
[398259658,1765473083827,-500.0,0.00014246,2]
[398259659,1765473083836,-1287.46,0.00014246,2]
[398259660,1765473083845,-500.0,0.00014246,2]
[398259661,1765473083854,-1595.81,0.00014246,2]
[398259662,1765473083863,-536.67,0.00014246,2]
[398259663,1765473083872,-500.0,0.00014246,2]
[398259664,1765473083882,-1030.43,0.00014246,2]
[398259665,1765473083891,-947.41,0.00014246,2]
[398259666,1765473083900,-1145.0,0.00014246,2]
[398259667,1765473083909,-610.1,0.00014246,2]
[398259668,1765473083919,-500.0,0.00014246,2]
[398259669,1765473083928,-916.72,0.00014246,2]
[398259670,1765473083937,-947.38,0.00014246,2]
[398259671,1765473083946,-603.81,0.00014246,2]
[398259672,1765473083956,-1226.34,0.00014246,2]
[398259673,1765473083965,-1501.42,0.00014246,2]
[398259674,1765473083980,-500.0,0.00014246,2]
[398259675,1765473083990,-500.0,0.00014246,2]
[398259676,1765473083999,-500.0,0.00014246,2]
[398259677,1765473084010,-1113.97,0.00014246,2]
[398259678,1765473084020,-500.0,0.00014246,2]
[398259679,1765473084030,-982.88,0.00014246,2]
[398259680,1765473084039,-817.06,0.00014246,2]
[398259681,1765473084050,-603.27,0.00014246,2]
[398259682,1765473084059,-1222.38,0.00014246,2]
[398259683,1765473084068,-3340.02,0.00014246,2]
[398259684,1765473084077,-500.0,0.00014246,2]
[398259685,1765473084086,-2222.37,0.00014246,2]
[398259686,1765473084095,-500.0,0.00014246,2]
[398259687,1765473084104,-1823.03,0.00014246,2]
[398259688,1765473084113,-740.93,0.00014246,2]
[398259689,1765473084122,-500.0,0.00014246,2]
[398259690,1765473084132,-500.0,0.00014246,2]
[398259691,1765473084141,-2279.37,0.00014246,2]
[398259692,1765473084151,-1319.35,0.00014246,2]
[398259693,1765473084159,-500.0,0.00014246,2]
[398259694,1765473084168,-572.55,0.00014246,2]
[398259695,1765473084178,-3595.68,0.00014246,2]
[398259696,1765473084187,-500.0,0.00014246,2]
[398259697,1765473084196,-604.59,0.00014246,2]
[398259698,1765473084205,-635.56,0.00014246,2]
[398259699,1765473084216,-1128.13,0.00014246,2]
[398259700,1765473084225,-870.33,0.00014246,2]
[398259701,1765473084235,-1376.81,0.00014246,2]
[398259702,1765473084243,-500.0,0.00014246,2]
[398259703,1765473084252,-500.0,0.00014246,2]
[398259704,1765473084261,-500.0,0.00014246,2]
[398259705,1765473084270,-500.0,0.00014246,2]
[398259706,1765473084280,-427.31934848,0.00014246,2]
[398259707,1765473084290,-1442.81,0.00014246,2]
[398259708,1765473084300,-500.0,0.00014246,2]
[398259709,1765473084310,-500.0,0.00014246,2]
[398259710,1765473084319,-500.0,0.00014246,2]
[398259711,1765473084328,-475.51564882,0.00014246,2]
[398259712,1765473084338,-500.0,0.00014246,2]
[398259713,1765473084347,-1626.69,0.00014246,2]
[398259714,1765473084356,-2114.36,0.00014246,2]
[398259715,1765473084366,-1142.02,0.00014246,2]
[398259716,1765473084375,-1166.75,0.00014246,2]
[398259717,1765473084385,-1326.87,0.00014246,2]
[398259718,1765473084394,-1524.16,0.00014246,2]
[398259719,1765473084403,-847.25,0.00014246,2]
[398259720,1765473084411,-501.48409524,0.00014246,2]
[398259721,1765473084421,-922.26,0.00014246,2]
[398259722,1765473084430,-820.02,0.00014246,2]
[398259723,1765473084440,-2189.83,0.00014246,2]
[398259724,1765473084448,-1088.15,0.00014246,2]
[398259725,1765473084537,-1543.6,0.00014246,2]
[398259726,1765473084550,-681.91,0.00014246,2]
[398259727,1765473084559,-500.0,0.00014246,2]
[398259728,1765473084568,-500.0,0.00014246,2]
[398259729,1765473084577,-959.95,0.00014246,2]
[398259730,1765473084586,-500.0,0.00014246,2]
[398259731,1765473084594,-500.0,0.00014246,2]
[398259732,1765473084603,-500.0,0.00014246,2]
[398259733,1765473084612,-1538.57,0.00014246,2]
[398259734,1765473084621,-10671.61,0.00014246,2]
[398259735,1765473084640,-500.0,0.00014246,2]
[398259736,1765473084650,-500.0,0.00014246,2]
[398259737,1765473084659,-873.52,0.00014246,2]
[398259738,1765473084668,-500.0,0.00014246,2]
[398259739,1765473084676,-3357.79,0.00014246,2]
[398259740,1765473084685,-1731.33,0.00014246,2]
[398259741,1765473084694,-53416.15,0.00014246,2]
[398259742,1765473084702,-500.0,0.00014246,2]
[398259743,1765473084711,-500.0,0.00014246,2]
[398259744,1765473084721,-910.44,0.00014246,2]
[398259745,1765473084729,-500.0,0.00014246,2]
[398259746,1765473084740,-1181.33,0.00014246,2]
[398259747,1765473084749,-619.61,0.00014246,2]
[398259748,1765473084758,-500.0,0.00014246,2]
[398259749,1765473084767,-875.86,0.00014246,2]
[398259750,1765473084776,-604.4,0.00014246,2]
[398259751,1765473084785,-630.31,0.00014246,2]
[398259752,1765473084795,-8389.15,0.00014246,2]
[398259753,1765473084804,-2523.82,0.00014246,2]
[398259754,1765473084813,-207.99584669,0.00014246,2]
[398259755,1765473084823,-500.0,0.00014246,2]
[398259756,1765473084831,-850.25,0.00014246,2]
[398259757,1765473084841,-500.0,0.00014246,2]
[398259758,1765473084849,-2914.61,0.00014246,2]
[398259759,1765473084859,-500.0,0.00014246,2]
[398259760,1765473084868,-1104.52,0.00014246,2]
[398259761,1765473084877,-212.91398952,0.00014246,2]
[398259762,1765473084887,-1148.62,0.00014246,2]
[398259763,1765473084896,-1841.97,0.00014246,2]
[398259764,1765473084905,-500.0,0.00014246,2]
[398259765,1765473084914,-500.0,0.00014246,2]
[398259766,1765473084923,-500.0,0.00014246,2]
[398259767,1765473084932,-1309.83,0.00014246,2]
[398259768,1765473084942,-500.0,0.00014246,2]
[398259769,1765473084950,-950.55,0.00014246,2]
[398259770,1765473084959,-500.0,0.00014246,2]
[398259771,1765473084969,-1839.66,0.00014246,2]
[398259772,1765473084980,-500.0,0.00014246,2]
[398259773,1765473084989,-8048.24,0.00014246,2]
[398259774,1765473084999,-337.26892077,0.00014246,2]
[398259775,1765473085008,-1410.6,0.00014246,2]
[398259776,1765473085018,-1097.57,0.00014246,2]
[398259777,1765473085027,-500.0,0.00014246,2]
[398259778,1765473085037,-2081.19,0.00014246,2]
[398259779,1765473085048,-500.0,0.00014246,2]
[398259780,1765473085058,-1191.31,0.00014246,2]
[398259781,1765473085067,-1560.76,0.00014246,2]
[398259782,1765473085078,-500.0,0.00014246,2]
[398259783,1765473085087,-887.69,0.00014246,2]
[398259784,1765473085096,-987.32,0.00014246,2]
[398259785,1765473085106,-5938.55,0.00014246,2]
[398259786,1765473085117,-542.37019952,0.00014246,2]
[398259787,1765473085129,-500.0,0.00014246,2]
[398259788,1765473085138,-5007.32,0.00014246,2]
[398259789,1765473085148,-1973.08,0.00014246,2]
[398259790,1765473085156,-2136.22,0.00014246,2]
[398259791,1765473085165,-2066.71,0.00014246,2]
[398259792,1765473085174,-500.0,0.00014246,2]
[398259793,1765473085183,-2108.49,0.00014246,2]
[398259794,1765473085192,-500.0,0.00014246,2]
[398259795,1765473085201,-500.0,0.00014246,2]
[398259796,1765473085210,-990.15,0.00014246,2]
[398259797,1765473085219,-17849.44,0.00014246,2]
[398259798,1765473085229,-500.0,0.00014246,2]
[398259799,1765473085238,-182.14152113,0.00014246,2]
[398259800,1765473085246,-500.0,0.00014246,2]
[398259801,1765473085255,-1798.0,0.00014246,2]
[398259802,1765473085266,-3449.92,0.00014246,2]
[398259803,1765473085275,-500.0,0.00014246,2]
[398259804,1765473085284,-500.0,0.00014246,2]
[398259805,1765473085293,-4118.34,0.00014246,2]
[398259806,1765473085303,-830.5,0.00014246,2]
[398259807,1765473085313,-500.0,0.00014246,2]
[398259808,1765473085323,-500.0,0.00014246,2]
[398259809,1765473085332,-910.39,0.00014246,2]
[398259810,1765473085341,-500.0,0.00014246,2]
[398259811,1765473085350,-500.0,0.00014246,2]
[398259812,1765473085359,-15811.29,0.00014246,2]
[398259813,1765473085368,-500.0,0.00014246,2]
[398259814,1765473085377,-862.37,0.00014246,2]
[398259815,1765473085386,-602.31,0.00014246,2]
[398259816,1765473085395,-525.88,0.00014246,2]
[398259817,1765473085405,-500.0,0.00014246,2]
[398259818,1765473085414,-788.03,0.00014246,2]
[398259819,1765473085424,-2726.54,0.00014246,2]
[398259820,1765473085432,-500.0,0.00014246,2]
[398259821,1765473085442,-500.0,0.00014246,2]
[398259822,1765473085452,-500.0,0.00014246,2]
[398259823,1765473085461,-1792.08,0.00014246,2]
[398259824,1765473085473,-500.0,0.00014246,2]
[398259825,1765473085482,-500.0,0.00014246,2]
[398259826,1765473085496,-500.0,0.00014246,2]
[398259827,1765473085505,-648.27,0.00014246,2]
[398259828,1765473085515,-1464.86,0.00014246,2]
[398259829,1765473085524,-500.0,0.00014246,2]
[398259830,1765473085533,-669.48,0.00014246,2]
[398259831,1765473085543,-2489.03,0.00014246,2]
[398259832,1765473085552,-500.0,0.00014246,2]
[398259833,1765473085562,-500.0,0.00014246,2]
[398259834,1765473085572,-979.89,0.00014246,2]
[398259835,1765473085582,-500.0,0.00014246,2]
[398259836,1765473085591,-2319.1,0.00014246,2]
[398259837,1765473085601,-8021.34,0.00014246,2]
[398259838,1765473085610,-1059.6,0.00014246,2]
[398259839,1765473085620,-748.3,0.00014246,2]
[398259840,1765473085629,-758.49,0.00014246,2]
[398259841,1765473085638,-500.0,0.00014246,2]
[398259842,1765473085647,-500.0,0.00014246,2]
[398259843,1765473085656,-521.79,0.00014246,2]
[398259844,1765473085665,-500.0,0.00014246,2]
[398259845,1765473085675,-500.0,0.00014246,2]
[398259846,1765473085684,-3194.33,0.00014246,2]
[398259847,1765473085693,-1602.59,0.00014246,2]
[398259848,1765473085703,-526.42,0.00014246,2]
[398259849,1765473085713,-1033.03,0.00014246,2]
[398259850,1765473085722,-500.0,0.00014246,2]
[398259851,1765473085731,-500.0,0.00014246,2]
[398259852,1765473085741,-1427.04,0.00014246,2]
[398259853,1765473085750,-1182.82,0.00014246,2]
[398259854,1765473085760,-500.0,0.00014246,2]
[398259855,1765473085770,-503.81,0.00014246,2]
[398259856,1765473085779,-2241.56,0.00014246,2]
[398259857,1765473085788,-2357.55,0.00014246,2]
[398259858,1765473085797,-556.27870385,0.00014246,2]
[398259859,1765473085807,-500.0,0.00014246,2]
[398259860,1765473085817,-500.0,0.00014246,2]
[398259861,1765473085826,-746.51,0.00014246,2]
[398259862,1765473085836,-500.0,0.00014246,2]
[398259863,1765473085845,-502.94,0.00014246,2]
[398259864,1765473085855,-2477.03,0.00014246,2]
[398259865,1765473085864,-536.44313249,0.00014246,2]
[398259866,1765473085873,-16159.61,0.00014246,2]
[398259867,1765473085882,-500.0,0.00014246,2]
[398259868,1765473085891,-500.0,0.00014246,2]
[398259869,1765473085900,-1020.46,0.00014246,2]
[398259870,1765473085909,-500.0,0.00014246,2]
[398259871,1765473085919,-946.88,0.00014246,2]
[398259872,1765473085928,-500.0,0.00014246,2]
[398259873,1765473085938,-500.0,0.00014246,2]
[398259874,1765473085947,-500.0,0.00014246,2]
[398259875,1765473085956,-500.0,0.00014246,2]
[398259876,1765473085965,-929.81,0.00014246,2]
[398259877,1765473085978,-500.0,0.00014246,2]
[398259878,1765473085988,-1802.15,0.00014246,2]
[398259879,1765473085997,-6470.75,0.00014246,2]
[398259880,1765473086015,-9833.23,0.00014246,2]
[398259881,1765473086024,-500.0,0.00014246,2]
[398259882,1765473086032,-997.71,0.00014246,2]
[398259883,1765473086042,-500.0,0.00014246,2]
[398259884,1765473086053,-500.0,0.00014246,2]
[398259885,1765473086062,-500.0,0.00014246,2]
[398259886,1765473086072,-975.53,0.00014246,2]
[398259887,1765473086084,-711.68,0.00014246,2]
[398259888,1765473086093,-500.0,0.00014246,2]
[398259889,1765473086102,-2355.47,0.00014246,2]
[398259890,1765473086112,-6461.74,0.00014246,2]
[398259891,1765473086121,-500.65276181,0.00014246,2]
[398259892,1765473086131,-500.0,0.00014246,2]
[398259893,1765473086140,-705.81,0.00014246,2]
[398259894,1765473086149,-1840.07,0.00014246,2]
[398259895,1765473086159,-1427.0,0.00014246,2]
[398259896,1765473086167,-3038.1,0.00014246,2]
[398259897,1765473086176,-500.0,0.00014246,2]
[398259898,1765473086186,-325.7835726,0.00014246,2]
[398259899,1765473086195,-466.94860529,0.00014246,2]
[398259900,1765473086204,-3082.36,0.00014246,2]
[398259901,1765473086213,-1002.42,0.00014246,2]
[398259902,1765473086223,-500.0,0.00014246,2]
[398259903,1765473086231,-500.0,0.00014246,2]
[398259904,1765473086240,-500.0,0.00014246,2]
[398259905,1765473086249,-2274.69,0.00014246,2]
[398259906,1765473086259,-500.0,0.00014246,2]
[398259907,1765473086268,-2058.31,0.00014246,2]
[398259908,1765473086277,-540.88575033,0.00014246,2]
[398259909,1765473086287,-500.0,0.00014246,2]
[398259910,1765473086296,-543.43,0.00014246,2]
[398259911,1765473086306,-2874.84,0.00014246,2]
[398259912,1765473086315,-1626.08,0.00014246,2]
[398259913,1765473086325,-3909.79,0.00014246,2]
[398259914,1765473086334,-500.0,0.00014246,2]
[398259915,1765473086344,-1213.67,0.00014246,2]
[398259916,1765473086356,-500.0,0.00014246,2]